[Event "CZE-ch U12 Open 2023"]
[Site "Teplice"]
[Date "2023.03.17"]
[Round "8.1"]
[White "Kroulik, Vaclav"]
[Black "Bara, Jan"]
[Result "0-1"]
[Annotator "NA RC COMBH"]
[ECO "B50"]
[WhiteElo "1772"]
[BlackElo "1712"]
[PlyCount "96"]
[EventDate "2023.03.09"]
[EventType "swiss"]
[EventCountry "CZE"]
[SourceTitle "playchess.com"]
[Source "ChessBase"]
[SourceQuality "1"]
[TimeControl "40/5400+30:1800+30"]

1. e4 {[%emt 0:00:02]} c5 {[%emt 0:00:07]} 2. Nf3 {[%emt 0:00:03]} d6 {[%emt 0:00:07]} 3. c3 {[%emt 0:00:04]} Nf6 {[%emt 0:01:02]} 4. Be2 {[%emt 0:00:06]} g6 {[%emt 0:00:18]} 5. d3 {[%emt 0:00:20]} Bg7 {[%emt 0:00:14]} 6. O-O {[%emt 0:00:05]} O-O {[%emt 0:00:18]} 7. h3 {[%emt 0:00:16]} Nc6 {[%emt 0:02:15]} 8. Be3 {[%emt 0:01:26]} Rb8 {[%emt 0:01:14]} 9. Nbd2 {[%emt 0:01:09]} b5 {[%emt 0:08:58]} 10. d4 {[%emt 0:07:09]} cxd4 {[%emt 0:01:12]} 11. cxd4 {[%emt 0:00:15]} a6 {[%emt 0:02:24]} 12. d5 {[%emt 0:01:55]} Na5 {[%emt 0:01:57]} 13. Nd4 {[%emt 0:02:38]} Bd7 {[%emt 0:04:40]} 14. Rc1 {[%emt 0:06:37]} Rc8 {[%emt 0:02:06]} 15. f3 {[%emt 0:04:47]} Rxc1 {[%emt 0:04:33]} 16. Qxc1 {[%emt 0:00:08]} Qc8 {[%emt 0:00:12]} 17. b4 {[%emt 0:02:06]} Nb7 {[%emt 0:05:20]} 18. Qa3 {[%emt 0:02:36]} Qa8 {[%emt 0:04:07]} 19. Rc1 {[%emt 0:00:47]} e5 {[%emt 0:10:21]} 20. Nc6 {[%emt 0:05:53]} Kh8 {[%emt 0:11:57]} 21. Na7 {[%emt 0:05:55]} Nh5 {[%emt 0:04:00]} 22. Qxa6 {[%emt 0:05:14]} Nf4 {[%emt 0:00:37]} 23. Bxb5 {[%emt 0:03:40]} Bxb5 {[%emt 0:01:12]} 24. Qxb5 {[%emt 0:00:11]} Bh6 {[%emt 0:01:11]} 25. Bf2 {[%emt 0:03:40]} Nc5 {[%emt 0:11:19]} 26. bxc5 {[%emt 0:02:58]} Qxa7 {[%emt 0:00:10]} 27. Rc2 {[%emt 0:01:50]} Rb8 {[%emt 0:03:57]} 28. c6 {[%emt 0:06:03]} Qc7 {[%emt 0:01:04]} 29. a4 {[%emt 0:04:05]} Rxb5 {[%emt 0:06:04]} 30. axb5 {[%emt 0:00:05]} Ne2+ {[%emt 0:00:16]} 31. Kh2 {[%emt 0:00:43]} Bf4+ {[%emt 0:01:10]} 32. g3 {[%emt 0:06:11]} Bxg3+ {[%emt 0:00:16]} 33. Bxg3 {[%emt 0:00:13]} Qb6 {[%emt 0:00:05]} 34. Rc1 {[%emt 0:04:51]} Nxc1 {[%emt 0:00:16]} 35. Nc4 {[%emt 0:01:49]} Qxb5 {[%emt 0:00:32]} 36. Nxd6 {[%emt 0:00:55]} Qe2+ {[%emt 0:00:42]} 37. Kg1 {[%emt 0:01:37]} Qd1+ {[%emt 0:00:51]} 38. Kg2 {[%emt 0:00:51]} Qc2+ {[%emt 0:01:02]} 39. Kh1 {[%emt 0:01:20]} Nd3 {[%emt 0:05:25]} 40. Nxf7+ {[%emt 0:03:16]} Kg7 {[%emt 0:00:01]} 41. Ng5 {[%emt 0:31:42]} Qc1+ {[%emt 0:30:15]} 42. Kh2 {[%emt 0:01:29]} Qxg5 {[%emt 0:00:16]} 43. h4 {[%emt 0:00:55]} Qd2+ {[%emt 0:00:14]} 44. Kh3 {[%emt 0:00:22]} h5 {[%emt 0:01:37]} 45. c7 {[%emt 0:01:31]} Qc1 {[%emt 0:00:11]} 46. d6 {[%emt 0:00:38]} Qh1+ {[%emt 0:00:23]} 47. Bh2 {[%emt 0:00:03]} Qxf3+ {[%emt 0:00:13]} 48. Bg3 {[%emt 0:00:04]} Nf4+ {[%emt 0:00:13]} 0-1

[Event "CZE-ch U12 Open 2023"]
[Site "Teplice"]
[Date "2023.03.17"]
[Round "8.2"]
[White "Mik, Tomas"]
[Black "Mydlar, Matej"]
[Result "1-0"]
[Annotator "TA"]
[ECO "B40"]
[WhiteElo "1911"]
[BlackElo "1586"]
[PlyCount "87"]
[EventDate "2023.03.09"]
[EventType "swiss"]
[EventCountry "CZE"]
[SourceTitle "playchess.com"]
[Source "ChessBase"]
[SourceQuality "1"]
[TimeControl "40/5400+30:1800+30"]

{[%evp 17,87,22,25,29,43,44,28,22,101,-2,0,0,18,0,23,-12,209,78,116,116,179,188,179,175,406,368,329,282,252,246,236,235,215,-91,191,191,191,191,184,142,164,164,164,169,169,163,172,174,208,206,232,218,220,200,200,200,740,735,735,621,725,677,681,487,1122,1083,2554,2593,1995,1662,1423,1312]} 1. e4 {[%emt 0:00:04]} c5 {[%emt 0:00:09]} 2. Nf3 {[%emt 0:00:06]} e6 {[%emt 0:00:05]} 3. d4 {[%emt 0:00:07]} cxd4 {[%emt 0:00:04]} 4. Nxd4 {[%emt 0:00:07]} Nf6 {[%emt 0:00:04]} 5. Nc3 {[%emt 0:00:09]} Bb4 {[%emt 0:00:16]} 6. e5 {[%emt 0:00:25]} Nd5 {[%emt 0:00:04]} 7. Qg4 {[%emt 0:00:16]} g6 {[%emt 0:05:25]} 8. Bd2 {[%emt 0:01:49]} Nxc3 {[%emt 0:00:55]} 9. bxc3 {[%emt 0:00:15]} Be7 {[%emt 0:00:21]} 10. Bd3 {[%emt 0:00:53] B40: Sicilian: 2...e6, Unusual lines.} Nc6 {[%emt 0:00:20]} 11. Nxc6 {[%emt 0:03:35]} bxc6 {[%emt 0:00:55]} 12. O-O {[%emt 0:01:04] White has an edge.} d6 {[%emt 0:01:37] [#]} (12... O-O $11 {keeps the balance.}) 13. f4 $146 {[%emt 0:05:56] White has more active pieces. The black rooks are badly placed.} (13. Bh6 $1 $16) ({Predecessor:} 13. Bh6 dxe5 14. Bg7 f5 15. Qa4 Rg8 16. Bxe5 Bd7 17. Rfd1 a5 18. Rab1 Qc8 19. Rb6 {1-0 Nurkiewicz,M (2387)-Spisak,C (2323) POL-chT 61st 2005 (8)}) 13... Qc7 {[%emt 0:02:24]} 14. exd6 {[%emt 0:06:55]} Bxd6 {[%emt 0:00:57]} 15. Rae1 {[%emt 0:01:27]} (15. c4 {looks sharper.} O-O 16. Bc3 Qe7 17. Rab1) 15... Be7 {[%emt 0:05:21]} 16. Kh1 {[%emt 0:02:59][%cal Of4f5]} (16. c4 {with more complications.} O-O 17. Bc3 Rb8 18. Kh1) 16... Bb7 $2 {[%emt 0:02:49] [#]} (16... O-O $1 $11) 17. c4 {[%emt 0:01:40]} (17. f5 $1 $18 {and the rest is easy. Hoping for Bf4.} gxf5 18. Qh5) 17... O-O-O {[%emt 0:05:50]} 18. Bc3 {[%emt 0:00:54]} h5 {[%emt 0:03:36]} (18... Rhe8 $16) 19. Qe2 $18 {[%emt 0:00:36]} Rhg8 {[%emt 0:00:14]} 20. Rb1 {[%emt 0:01:22]} Bd6 $2 {[%emt 0:06:58] [#]} (20... Bc5 {was necessary.} 21. Bf6 Rd7) 21. c5 $1 {[%emt 0:02:10][%mdl 512]} Bxc5 {[%emt 0:01:08]} 22. Ba6 {[%emt 0:00:13]} Bb6 {[%emt 0:00:21] [#]} 23. a4 $1 {[%emt 0:00:36]} Bxa6 {[%emt 0:02:50]} 24. Qxa6+ {[%emt 0:00:07]} Qb7 {[%emt 0:00:13]} 25. Qxb7+ {[%emt 0:00:09]} Kxb7 {[%emt 0:00:01]} 26. a5 {[%emt 0:00:12][%mdl 64] Pin. Black is now going downhill.} Rd5 {[%emt 0:00:08]} 27. axb6 {[%emt 0:00:31]} axb6 {[%emt 0:00:05]} 28. Rfd1 {[%emt 0:01:15]} Rgd8 {[%emt 0:00:05]} 29. Rxd5 {[%emt 0:00:20]} Rxd5 {[%emt 0:00:12][%mdl 4096] Endgame KRB-KR} 30. Kg1 {[%emt 0:00:33]} b5 {[%emt 0:00:14]} 31. Kf2 {[%emt 0:00:16]} Rc5 {[%emt 0:00:35]} 32. Rb3 {[%emt 0:01:15]} Rc4 {[%emt 0:00:05][%cal Ob7b6]} 33. Ke3 {[%emt 0:00:40]} Kb6 {[%emt 0:00:23]} 34. g3 {[%emt 0:01:09]} c5 {[%emt 0:00:07]} 35. Kd3 {[%emt 0:00:36]} Ra4 {[%emt 0:00:28] ...c4+ would be deadly.} 36. Rb1 {[%emt 0:01:50]} Ra3 $2 {[%emt 0:00:34]} (36... Ra7 37. Ra1 Rd7+ 38. Ke2 b4) 37. Ra1 {[%emt 0:00:34] White is clearly winning.} Rxa1 {[%emt 0:00:52]} 38. Bxa1 {[%emt 0:00:10] KB-KP} Kc6 {[%emt 0:00:06]} 39. Ke4 {[%emt 0:00:30] Black must now prevent Ke5.} Kd6 {[%emt 0:00:07]} 40. Be5+ {[%emt 0:01:04]} Kc6 {[%emt 0:00:11]} (40... Ke7 $142 41. Bb2 Kd6) 41. Bg7 {[%emt 0:30:42] Threatens to win with Ke5.} Kd6 {[%emt 0:30:18]} 42. Bf8+ {[%emt 0:00:16]} Kc6 {[%emt 0:00:07]} 43. c3 {[%emt 0:01:03]} f6 {[%emt 0:00:13]} 44. Be7 {[%emt 0:00:24] Weighted Error Value: White=0.37/Black=0.43} 1-0

[Event "CZE-ch U12 Open 2023"]
[Site "Teplice"]
[Date "2023.03.17"]
[Round "8.3"]
[White "Sochor, Antonin"]
[Black "Policar, Martin"]
[Result "1-0"]
[Annotator "NA RC COMBH"]
[ECO "C26"]
[WhiteElo "1574"]
[BlackElo "1552"]
[PlyCount "149"]
[EventDate "2023.03.09"]
[EventType "swiss"]
[EventCountry "CZE"]
[SourceTitle "playchess.com"]
[Source "ChessBase"]
[SourceQuality "1"]
[TimeControl "40/5400+30:1800+30"]

1. e4 {[%emt 0:00:04]} Nf6 {[%emt 0:00:04]} 2. Nc3 {[%emt 0:00:15]} e5 {[%emt 0:00:03]} 3. g3 {[%emt 0:00:10]} Bb4 {[%emt 0:00:16]} 4. Bg2 {[%emt 0:00:17]} Nc6 {[%emt 0:00:34]} 5. Nge2 {[%emt 0:00:20]} d6 {[%emt 0:01:19]} 6. O-O {[%emt 0:00:14]} Be6 {[%emt 0:02:51]} 7. h3 {[%emt 0:00:20]} Qd7 {[%emt 0:01:16]} 8. Kh2 {[%emt 0:00:22]} d5 {[%emt 0:16:53]} 9. exd5 {[%emt 0:00:19]} Nxd5 {[%emt 0:00:17]} 10. d3 {[%emt 0:00:45]} h5 {[%emt 0:12:44]} 11. h4 {[%emt 0:01:13]} f6 {[%emt 0:05:29]} 12. a3 {[%emt 0:06:40]} Bxc3 {[%emt 0:02:20]} 13. bxc3 {[%emt 0:00:20]} g5 {[%emt 0:02:50]} 14. c4 {[%emt 0:06:34]} Nde7 {[%emt 0:02:14]} 15. Rb1 {[%emt 0:00:25]} O-O-O {[%emt 0:01:58]} 16. Be3 {[%emt 0:02:31]} gxh4 {[%emt 0:00:36]} 17. gxh4 {[%emt 0:00:14]} Nf5 {[%emt 0:01:05]} 18. Rxb7 {[%emt 0:16:00]} Nxe3 {[%emt 0:01:46]} 19. fxe3 {[%emt 0:01:00]} Kxb7 {[%emt 0:00:18]} 20. Qb1+ {[%emt 0:00:51]} Kc8 {[%emt 0:00:09]} 21. Qb5 {[%emt 0:00:33]} Rdg8 {[%emt 0:07:33]} 22. Bxc6 {[%emt 0:00:48]} Qe7 {[%emt 0:01:28]} 23. Rb1 {[%emt 0:26:59]} Kd8 {[%emt 0:01:35]} 24. Qb8+ {[%emt 0:01:09]} Bc8 {[%emt 0:00:28]} 25. Rb5 {[%emt 0:00:44]} Qg7 {[%emt 0:04:43]} 26. Rd5+ {[%emt 0:00:31]} Ke7 {[%emt 0:00:13]} 27. Qxc7+ {[%emt 0:05:55]} Ke6 {[%emt 0:00:12]} 28. Rd6+ {[%emt 0:00:27]} Kf5 {[%emt 0:00:35]} 29. Be4+ {[%emt 0:00:29]} Kg4 {[%emt 0:00:38]} 30. Qa5 {[%emt 0:02:48]} Kxh4 {[%emt 0:01:58]} 31. Qe1+ {[%emt 0:00:51]} Kg5 {[%emt 0:00:10]} 32. Qg3+ {[%emt 0:01:31]} Bg4 {[%emt 0:01:04]} 33. Ng1 {[%emt 0:03:53]} Kh6 {[%emt 0:07:45]} 34. Qxe5 {[%emt 0:02:16]} Rf8 {[%emt 0:00:30]} 35. Qg3 {[%emt 0:05:39]} Qg5 {[%emt 0:03:28]} 36. Nh3 {[%emt 0:04:05]} h4 {[%emt 0:02:27]} 37. Qf4 {[%emt 0:01:54]} Bxh3 {[%emt 0:00:50]} 38. Kxh3 {[%emt 0:00:40]} Rf7 {[%emt 0:06:03]} 39. Qxg5+ {[%emt 0:02:35]} Kxg5 {[%emt 0:00:11]} 40. Rd5+ {[%emt 0:00:37]} f5 {[%emt 0:00:37]} 41. Bf3 {[%emt 0:30:35]} Rg8 {[%emt 0:31:05]} 42. c5 {[%emt 0:01:20]} Kf6 {[%emt 0:01:53]} 43. Rd6+ {[%emt 0:00:14]} Ke7 {[%emt 0:00:40]} 44. Bd5 {[%emt 0:00:37]} Rg3+ {[%emt 0:00:26]} 45. Kxh4 {[%emt 0:00:23]} Rg4+ {[%emt 0:00:40]} 46. Kh5 {[%emt 0:01:41]} Rh7+ {[%emt 0:03:36]} 47. Rh6 {[%emt 0:00:24]} Rhg7 {[%emt 0:00:02]} 48. Re6+ {[%emt 0:03:06]} Kd7 {[%emt 0:00:26]} 49. c6+ {[%emt 0:01:09]} Kc7 {[%emt 0:00:02]} 50. Rf6 {[%emt 0:00:44]} Rh7+ {[%emt 0:00:11]} 51. Rh6 {[%emt 0:00:28]} Rhg7 {[%emt 0:00:38]} 52. Rf6 {[%emt 0:00:23]} Rh7+ {[%emt 0:02:47]} 53. Rh6 {[%emt 0:00:10]} Rxh6+ {[%emt 0:01:06]} 54. Kxh6 {[%emt 0:00:12]} f4 {[%emt 0:00:01]} 55. exf4 Rxf4 {[%emt 0:00:04]} 56. Be4 {[%emt 0:00:44]} Rf2 {[%emt 0:00:12]} 57. c4 {[%emt 0:00:25]} Ra2 {[%emt 0:00:33]} 58. Kg5 {[%emt 0:00:11]} Rxa3 {[%emt 0:00:14]} 59. Kf5 {[%emt 0:00:19]} Ra1 {[%emt 0:01:16]} 60. Ke5 {[%emt 0:01:33]} a5 {[%emt 0:01:43]} 61. d4 {[%emt 0:00:55]} Rc1 {[%emt 0:00:41]} 62. Kd5 {[%emt 0:02:01]} a4 {[%emt 0:00:10]} 63. Kc5 {[%emt 0:00:32]} a3 {[%emt 0:00:02]} 64. d5 {[%emt 0:00:17]} Rd1 {[%emt 0:00:19]} 65. Bc2 {[%emt 0:00:45]} Rd2 {[%emt 0:00:19]} 66. Bb1 {[%emt 0:00:31]} a2 {[%emt 0:00:08]} 67. d6+ {[%emt 0:00:18]} Kb8 {[%emt 0:01:48]} 68. c7+ {[%emt 0:00:27]} Ka7 {[%emt 0:00:02]} 69. Bxa2 {[%emt 0:00:28]} Rxa2 70. c8=Q Ra6 {[%emt 0:00:38]} 71. Qxa6+ {[%emt 0:00:43]} Kxa6 {[%emt 0:00:03]} 72. d7 {[%emt 0:00:14]} Kb7 {[%emt 0:00:02]} 73. d8=Q {[%emt 0:00:15]} Ka7 {[%emt 0:00:03]} 74. Kc6 {[%emt 0:00:31]} Ka6 {[%emt 0:00:15]} 75. Qa8# {[%emt 0:00:12]} 1-0

[Event "CZE-ch U12 Open 2023"]
[Site "Teplice"]
[Date "2023.03.17"]
[Round "8.4"]
[White "Chernyy, Andrey"]
[Black "Mikulka, Martin Michael"]
[Result "0-1"]
[Annotator "NA RC COMBH"]
[ECO "C00"]
[WhiteElo "1605"]
[BlackElo "1786"]
[PlyCount "98"]
[EventDate "2023.03.09"]
[EventType "swiss"]
[EventCountry "CZE"]
[SourceTitle "playchess.com"]
[Source "ChessBase"]
[SourceQuality "1"]
[TimeControl "40/5400+30:1800+30"]

1. e4 {[%emt 0:00:03]} e6 {[%emt 0:00:18]} 2. d3 {[%emt 0:00:21]} d5 {[%emt 0:00:31]} 3. Nd2 {[%emt 0:00:16]} c5 {[%emt 0:01:00]} 4. Ngf3 {[%emt 0:00:46]} Nc6 {[%emt 0:00:40]} 5. g3 {[%emt 0:00:27]} Bd6 {[%emt 0:02:33]} 6. Bg2 {[%emt 0:01:20]} Nge7 {[%emt 0:00:58]} 7. O-O {[%emt 0:01:18]} Bd7 {[%emt 0:00:50]} 8. a3 {[%emt 0:02:12]} Qc7 {[%emt 0:01:18]} 9. c3 {[%emt 0:02:31]} f6 {[%emt 0:01:28]} 10. Re1 {[%emt 0:00:55]} O-O {[%emt 0:01:12]} 11. Nf1 {[%emt 0:01:12]} a5 {[%emt 0:04:24]} 12. Bd2 {[%emt 0:06:54]} b5 {[%emt 0:03:45]} 13. Rc1 {[%emt 0:04:29]} Rfb8 {[%emt 0:03:15]} 14. Qe2 {[%emt 0:03:25]} b4 {[%emt 0:03:19]} 15. h4 {[%emt 0:04:10]} bxa3 {[%emt 0:02:23]} 16. bxa3 {[%emt 0:00:40]} Rb3 {[%emt 0:00:21]} 17. Ra1 {[%emt 0:00:47]} Rab8 {[%emt 0:03:41]} 18. Ne3 {[%emt 0:06:34]} f5 {[%emt 0:13:23]} 19. exf5 {[%emt 0:07:52]} exf5 {[%emt 0:00:37]} 20. Ng5 {[%emt 0:05:38]} d4 {[%emt 0:12:10]} 21. Nd5 {[%emt 0:09:19]} Qc8 {[%emt 0:05:22]} 22. Qh5 {[%emt 0:03:12]} h6 {[%emt 0:01:08]} 23. Nxe7+ {[%emt 0:04:59]} Nxe7 {[%emt 0:00:27]} 24. Rxe7 {[%emt 0:04:21]} Bxe7 {[%emt 0:00:09]} 25. Bd5+ {[%emt 0:00:24]} Kh8 {[%emt 0:00:06]} 26. Nf7+ {[%emt 0:05:40]} Kh7 {[%emt 0:00:11]} 27. Bxb3 {[%emt 0:05:06]} Rxb3 {[%emt 0:00:28]} 28. Re1 {[%emt 0:08:17]} Qf8 {[%emt 0:06:33]} 29. Ne5 {[%emt 0:01:18]} Be8 {[%emt 0:02:50]} 30. Qd1 {[%emt 0:00:27]} a4 {[%emt 0:07:13]} 31. cxd4 {[%emt 0:02:23]} cxd4 {[%emt 0:01:15]} 32. Nc4 {[%emt 0:00:49]} Bxa3 {[%emt 0:04:54]} 33. Nxa3 {[%emt 0:01:12]} Rxa3 {[%emt 0:00:07]} 34. Bc1 {[%emt 0:01:06]} Rb3 {[%emt 0:00:17]} 35. Qf3 {[%emt 0:00:21]} Bb5 {[%emt 0:01:32]} 36. Rd1 {[%emt 0:01:03]} Qc5 {[%emt 0:01:53]} 37. Bf4 {[%emt 0:02:11]} a3 {[%emt 0:01:35]} 38. Rc1 {[%emt 0:03:49]} Rc3 {[%emt 0:01:26]} 39. Ra1 {[%emt 0:00:17]} Rxd3 {[%emt 0:00:40]} 40. Qa8 {[%emt 0:00:23]} Bc6 {[%emt 0:00:37]} 41. Qd8 {[%emt 0:30:32]} Qd5 {[%emt 0:30:46]} 42. Qxd5 {[%emt 0:00:02]} Bxd5 {[%emt 0:00:09]} 43. Be5 {[%emt 0:00:39]} a2 {[%emt 0:00:09]} 44. Kf1 {[%emt 0:00:46]} Bf3 {[%emt 0:00:47]} 45. Ke1 {[%emt 0:01:09]} h5 {[%emt 0:01:11]} 46. Kf1 {[%emt 0:00:28]} Rd2 {[%emt 0:00:12]} 47. Rc1 {[%emt 0:01:19]} Kg6 {[%emt 0:00:28]} 48. Ra1 {[%emt 0:00:21]} Kf7 {[%emt 0:00:07]} 49. Re1 {[%emt 0:00:17]} Bd1 {[%emt 0:00:58]} 0-1

[Event "CZE-ch U12 Open 2023"]
[Site "Teplice"]
[Date "2023.03.17"]
[Round "8.5"]
[White "Boff, Ondrej"]
[Black "Rendl, Lubos"]
[Result "1-0"]
[Annotator "NA RC COMBH"]
[ECO "C24"]
[WhiteElo "1561"]
[BlackElo "1477"]
[PlyCount "51"]
[EventDate "2023.03.09"]
[EventType "swiss"]
[EventCountry "CZE"]
[SourceTitle "playchess.com"]
[Source "ChessBase"]
[SourceQuality "1"]
[TimeControl "40/5400+30:1800+30"]

1. e4 {[%emt 0:00:12]} e5 {[%emt 0:00:19]} 2. Bc4 {[%emt 0:00:14]} Nf6 {[%emt 0:00:05]} 3. d3 {[%emt 0:00:40]} c6 {[%emt 0:00:18]} 4. Nf3 {[%emt 0:00:24]} d5 {[%emt 0:00:10]} 5. Bb3 {[%emt 0:00:12]} a5 {[%emt 0:01:13]} 6. a3 {[%emt 0:00:34]} a4 {[%emt 0:01:25]} 7. Ba2 {[%emt 0:00:33]} Bd6 {[%emt 0:02:30]} 8. Nc3 {[%emt 0:01:29]} Be6 {[%emt 0:01:47]} 9. Bg5 {[%emt 0:01:14]} Ra5 {[%emt 0:02:50]} 10. Qd2 {[%emt 0:05:14]} Nbd7 {[%emt 0:03:38]} 11. O-O {[%emt 0:02:49]} O-O {[%emt 0:05:16]} 12. Rfe1 {[%emt 0:04:19]} d4 {[%emt 0:05:31]} 13. Ne2 {[%emt 0:04:07]} Bxa2 {[%emt 0:04:30]} 14. Rxa2 {[%emt 0:00:14]} Rb5 {[%emt 0:02:21]} 15. Ng3 {[%emt 0:04:06]} g6 {[%emt 0:03:49]} 16. Bh6 {[%emt 0:01:08]} Re8 {[%emt 0:01:42]} 17. Nf5 {[%emt 0:01:00]} Nf8 {[%emt 0:04:30]} 18. Ng7 {[%emt 0:12:15]} Re7 {[%emt 0:05:03]} 19. Nh4 {[%emt 0:21:19]} Ne6 {[%emt 0:10:39]} 20. Nhf5 {[%emt 0:10:38]} Rd7 {[%emt 0:05:35]} 21. Nxe6 {[%emt 0:07:37]} fxe6 {[%emt 0:00:11]} 22. Nxd6 {[%emt 0:00:34]} Rxd6 {[%emt 0:00:25]} 23. f4 {[%emt 0:00:28]} exf4 {[%emt 0:02:01]} 24. e5 {[%emt 0:01:51]} Rxe5 {[%emt 0:03:53]} 25. Rxe5 {[%emt 0:00:41]} Ng4 {[%emt 0:00:31]} 26. Bg5 1-0

[Event "CZE-ch U12 Open 2023"]
[Site "Teplice"]
[Date "2023.03.17"]
[Round "8.6"]
[White "Sochor, Vaclav"]
[Black "Rudlof, Adam"]
[Result "1-0"]
[Annotator "NA RC COMBH"]
[ECO "B24"]
[WhiteElo "1503"]
[BlackElo "1409"]
[PlyCount "181"]
[EventDate "2023.03.09"]
[EventType "swiss"]
[EventCountry "CZE"]
[SourceTitle "playchess.com"]
[Source "ChessBase"]
[SourceQuality "1"]
[TimeControl "40/5400+30:1800+30"]

1. e4 {[%emt 0:00:04]} c5 {[%emt 0:00:05]} 2. Nc3 {[%emt 0:00:07]} Nc6 {[%emt 0:00:11]} 3. g3 {[%emt 0:00:23]} d6 {[%emt 0:00:15]} 4. Bg2 {[%emt 0:00:21]} Nf6 {[%emt 0:00:14]} 5. Nge2 {[%emt 0:00:28]} e6 {[%emt 0:00:15]} 6. O-O {[%emt 0:00:57]} Be7 {[%emt 0:00:11]} 7. d4 {[%emt 0:01:33]} cxd4 {[%emt 0:00:12]} 8. Nxd4 {[%emt 0:00:38]} Bd7 {[%emt 0:00:16]} 9. Be3 {[%emt 0:02:31]} O-O {[%emt 0:00:17]} 10. Qd2 {[%emt 0:04:42]} Nxd4 {[%emt 0:01:16]} 11. Bxd4 {[%emt 0:01:27]} Bc6 {[%emt 0:00:12]} 12. Rad1 {[%emt 0:02:31]} e5 {[%emt 0:14:08]} 13. Be3 {[%emt 0:01:09]} Ng4 {[%emt 0:00:26]} 14. Nd5 {[%emt 0:06:15]} Bxd5 {[%emt 0:01:09]} 15. exd5 {[%emt 0:01:03]} Nxe3 {[%emt 0:00:16]} 16. Qxe3 {[%emt 0:01:40]} f5 17. Rfe1 {[%emt 0:12:43]} f4 {[%emt 0:14:16]} 18. Qe2 {[%emt 0:06:30]} fxg3 {[%emt 0:02:43]} 19. hxg3 {[%emt 0:00:59]} Qa5 {[%emt 0:09:29]} 20. Be4 {[%emt 0:12:35]} Rf6 {[%emt 0:08:26]} 21. Kg2 {[%emt 0:05:17]} Raf8 {[%emt 0:02:11]} 22. Rf1 {[%emt 0:04:55]} Bd8 {[%emt 0:05:13]} 23. a3 {[%emt 0:03:06]} Bb6 {[%emt 0:00:51]} 24. f3 {[%emt 0:00:40]} h6 {[%emt 0:08:11]} 25. c3 {[%emt 0:02:27]} Qc5 {[%emt 0:06:12]} 26. Rd3 {[%emt 0:04:20]} h5 {[%emt 0:09:17]} 27. b4 {[%emt 0:03:19]} Qc8 {[%emt 0:00:10]} 28. Rh1 {[%emt 0:00:46]} Rh6 29. Qd2 {[%emt 0:01:02]} h4 {[%emt 0:06:17]} 30. g4 {[%emt 0:04:29]} Rf4 {[%emt 0:01:00]} 31. Qe1 {[%emt 0:02:02]} Rxg4+ {[%emt 0:06:55]} 32. fxg4 {[%emt 0:01:54]} Qxg4+ {[%emt 0:00:06]} 33. Kh2 {[%emt 0:04:48]} Qf4+ {[%emt 0:02:20]} 34. Kh3 {[%emt 0:01:30]} g5 {[%emt 0:02:14]} 35. Qe2 {[%emt 0:01:53]} Rf6 {[%emt 0:01:51]} 36. Qf3 {[%emt 0:02:42]} g4+ {[%emt 0:00:49]} 37. Qxg4+ {[%emt 0:00:08]} Qxg4+ {[%emt 0:00:08]} 38. Kxg4 {[%emt 0:00:10]} Rf4+ {[%emt 0:00:01]} 39. Kg5 {[%emt 0:00:23]} Bd8+ {[%emt 0:00:07]} 40. Kg6 {[%emt 0:00:55]} Rxe4 {[%emt 0:00:35]} 41. Kf5 {[%emt 0:30:17]} Rf4+ {[%emt 0:30:22]} 42. Ke6 {[%emt 0:00:18]} e4 {[%emt 0:01:20]} 43. Re3 {[%emt 0:00:53]} Bb6 {[%emt 0:00:10]} 44. Re2 {[%emt 0:00:20]} e3 {[%emt 0:00:30]} 45. Kxd6 {[%emt 0:00:40]} Kf7 {[%emt 0:00:24]} 46. Rc2 {[%emt 0:01:15]} Rf2 {[%emt 0:01:07]} 47. Rxf2+ {[%emt 0:00:25]} exf2 {[%emt 0:00:05]} 48. Rf1 {[%emt 0:00:34]} Kf6 {[%emt 0:00:10]} 49. c4 {[%emt 0:01:40]} Bd4 {[%emt 0:00:27]} 50. Kc7 {[%emt 0:00:48]} Ke5 {[%emt 0:00:30]} 51. d6 {[%emt 0:01:37]} Ke4 {[%emt 0:00:05]} 52. d7 {[%emt 0:01:00]} Ke3 {[%emt 0:00:41]} 53. c5 {[%emt 0:01:07]} Bf6 {[%emt 0:00:06]} 54. Rc1 {[%emt 0:00:18]} Kd2 {[%emt 0:00:25]} 55. Rh1 {[%emt 0:00:21]} Ke2 {[%emt 0:00:38]} 56. Rh2 {[%emt 0:00:35]} Ke1 {[%emt 0:00:20]} 57. Rxf2 {[%emt 0:00:27]} Kxf2 {[%emt 0:00:09]} 58. Kxb7 {[%emt 0:00:10]} h3 {[%emt 0:00:16]} 59. c6 {[%emt 0:00:12]} h2 {[%emt 0:00:06]} 60. c7 {[%emt 0:00:07]} h1=Q+ {[%emt 0:00:06]} 61. Kb8 {[%emt 0:00:05]} Qh2 {[%emt 0:02:07]} 62. Kb7 {[%emt 0:01:02]} Qg2+ {[%emt 0:00:25]} 63. Kxa7 {[%emt 0:00:37]} Bd4+ {[%emt 0:02:07]} 64. Kb8 {[%emt 0:00:29]} Qc6 {[%emt 0:00:34]} 65. c8=Q Be5+ {[%emt 0:00:20]} 66. Ka7 {[%emt 0:01:25]} Qa4+ {[%emt 0:00:14]} 67. Kb7 {[%emt 0:00:58]} Qb5+ {[%emt 0:00:13]} 68. Ka8 {[%emt 0:00:23]} Qd5+ {[%emt 0:00:50]} 69. Qb7 {[%emt 0:00:14]} Qg8+ {[%emt 0:00:33]} 70. Qc8 {[%emt 0:00:24]} Qd5+ {[%emt 0:00:18]} 71. Qb7 {[%emt 0:00:06]} Qg8+ {[%emt 0:00:12]} 72. Ka7 {[%emt 0:00:31]} Bd4+ {[%emt 0:00:10]} 73. Ka6 {[%emt 0:00:24]} Qd8 {[%emt 0:01:18]} 74. Qc6 {[%emt 0:00:37]} Ke3 {[%emt 0:00:44]} 75. Qc1+ {[%emt 0:00:21]} Ke4 {[%emt 0:00:20]} 76. Qh1+ {[%emt 0:00:25]} Ke5 {[%emt 0:00:26]} 77. Qh2+ {[%emt 0:00:28]} Ke6 {[%emt 0:00:30]} 78. Qh3+ {[%emt 0:00:18]} Ke7 {[%emt 0:00:48]} 79. Qh4+ {[%emt 0:00:38]} Bf6 {[%emt 0:00:06]} 80. Qe4+ {[%emt 0:00:24]} Kd6 {[%emt 0:00:52]} 81. Qd3+ {[%emt 0:00:24]} Ke6 {[%emt 0:00:26]} 82. Qe4+ {[%emt 0:00:46]} Be5 {[%emt 0:00:24]} 83. Qc6+ {[%emt 0:00:27]} Kf5 {[%emt 0:00:40]} 84. Qc8 {[%emt 0:00:31]} Qf6+ {[%emt 0:00:22]} 85. Kb7 {[%emt 0:00:18]} Qf7 {[%emt 0:00:29]} 86. Ka6 {[%emt 0:00:52]} Qe6+ {[%emt 0:00:29]} 87. Ka5 {[%emt 0:00:37]} Qd5+ {[%emt 0:00:31]} 88. b5 {[%emt 0:00:29]} Bf6 {[%emt 0:00:34]} 89. d8=Q+ {[%emt 0:00:09]} Qe6 {[%emt 0:00:22]} 90. Qxe6+ {[%emt 0:00:15]} Kxe6 {[%emt 0:00:06]} 91. Qxf6+ {[%emt 0:00:08]} 1-0